[Event "Late-Titled-Tuesday-Blitz-March-19-2024"]
[Site "Chess.com"]
[Date "2024.03.19"]
[Round "10"]
[White "sergiochess83"]
[Black "I-Mesquita"]
[Result "1-0"]
[WhiteElo "2950"]
[BlackElo "2715"]
[TimeControl "180+1"]
[EndTime "15:53:58 PDT"]
[Termination "sergiochess83 won by resignation"]

1. d4 {[%clk 0:02:55.6]} 1... d5 {[%clk 0:03:00.3]} 2. c4 {[%clk 0:02:55.5]}
2... e6 {[%clk 0:03:00.8]} 3. Nc3 {[%clk 0:02:55.5]} 3... Nf6 {[%clk 0:03:01.5]}
4. Bg5 {[%clk 0:02:53.7]} 4... Be7 {[%clk 0:03:01.4]} 5. e3 {[%clk 0:02:53.9]}
5... O-O {[%clk 0:03:01.6]} 6. Rc1 {[%clk 0:02:54.1]} 6... h6 {[%clk 0:02:52.6]}
7. Bh4 {[%clk 0:02:53.1]} 7... b6 {[%clk 0:02:51.9]} 8. cxd5 {[%clk 0:02:27.8]}
8... Nxd5 {[%clk 0:02:50.5]} 9. Bxe7 {[%clk 0:02:22]} 9... Qxe7 {[%clk
0:02:50.6]} 10. Nxd5 {[%clk 0:02:09.7]} 10... exd5 {[%clk 0:02:51.5]} 11. Nf3
{[%clk 0:02:10.4]} 11... Be6 {[%clk 0:02:49.6]} 12. Be2 {[%clk 0:01:58.3]} 12...
c5 {[%clk 0:02:49.4]} 13. b3 {[%clk 0:01:51.5]} 13... Nd7 {[%clk 0:02:40.4]} 14.
O-O {[%clk 0:01:51.5]} 14... Rac8 {[%clk 0:02:40.9]} 15. Bb5 {[%clk 0:01:49.8]}
15... Nf6 {[%clk 0:02:26.4]} 16. Ne5 {[%clk 0:01:47.1]} 16... Rc7 {[%clk
0:02:26.8]} 17. f3 {[%clk 0:01:29.3]} 17... Rfc8 {[%clk 0:02:22.5]} 18. Ba6
{[%clk 0:01:28.6]} 18... Rd8 {[%clk 0:02:14.2]} 19. Qd2 {[%clk 0:01:27.8]} 19...
Nd7 {[%clk 0:02:03.7]} 20. f4 {[%clk 0:01:03.5]} 20... Nf6 {[%clk 0:01:56.6]}
21. Bd3 {[%clk 0:01:02.1]} 21... Rdc8 {[%clk 0:01:47.3]} 22. dxc5 {[%clk
0:00:58]} 22... bxc5 {[%clk 0:01:45.9]} 23. Rfe1 {[%clk 0:00:44.6]} 23... Qd6
{[%clk 0:01:35.6]} 24. Bb1 {[%clk 0:00:39.6]} 24... Rd8 {[%clk 0:01:09.3]} 25.
h3 {[%clk 0:00:37.5]} 25... d4 {[%clk 0:01:03.9]} 26. e4 {[%clk 0:00:36.7]}
26... Qb6 {[%clk 0:00:53.1]} 27. Bd3 {[%clk 0:00:35.5]} 27... Bc8 {[%clk
0:00:46.9]} 28. Bc4 {[%clk 0:00:32.3]} 28... Ba6 {[%clk 0:00:42.6]} 29. Qd3
{[%clk 0:00:30.1]} 29... Bxc4 {[%clk 0:00:42.2]} 30. Nxc4 {[%clk 0:00:30.4]}
30... Qa6 {[%clk 0:00:37.3]} 31. Re2 {[%clk 0:00:29.1]} 31... Re7 {[%clk
0:00:36.3]} 32. Rce1 {[%clk 0:00:29.2]} 32... Rde8 {[%clk 0:00:34.3]} 33. f5
{[%clk 0:00:23]} 33... Nd7 {[%clk 0:00:25.2]} 34. e5 {[%clk 0:00:22.7]} 34...
Qc6 {[%clk 0:00:19.3]} 35. Qg3 {[%clk 0:00:21.8]} 35... Kh8 {[%clk 0:00:17.6]}
36. Nd6 {[%clk 0:00:19.6]} 36... Rf8 {[%clk 0:00:16.6]} 37. f6 {[%clk
0:00:19.7]} 37... gxf6 {[%clk 0:00:11.3]} 38. Nf5 {[%clk 0:00:20]} 38... Rg8
{[%clk 0:00:04.4]} 39. Qxg8+ {[%clk 0:00:19.7]} 1-0

[Event "Late-Titled-Tuesday-Blitz-March-19-2024"]
[Site "Chess.com"]
[Date "2024.03.19"]
[Round "10"]
[White "LangesNasenhaar"]
[Black "Chempiblinka"]
[Result "1-0"]
[WhiteElo "2546"]
[BlackElo "2368"]
[TimeControl "180+1"]
[EndTime "15:54:00 PDT"]
[Termination "LangesNasenhaar won by resignation"]

1. d4 {[%clk 0:03:00.9]} 1... Nf6 {[%clk 0:02:58.8]} 2. Nf3 {[%clk 0:03:01.4]}
2... g6 {[%clk 0:02:58.8]} 3. Bg5 {[%clk 0:03:00.4]} 3... Bg7 {[%clk 0:02:56.9]}
4. Nbd2 {[%clk 0:03:00.4]} 4... c5 {[%clk 0:02:55.9]} 5. Bxf6 {[%clk 0:03:00]}
5... Bxf6 {[%clk 0:02:54]} 6. Ne4 {[%clk 0:03:00.6]} 6... Bxd4 {[%clk
0:02:54.4]} 7. Nxd4 {[%clk 0:03:00.7]} 7... cxd4 {[%clk 0:02:54.3]} 8. Qxd4
{[%clk 0:03:01.5]} 8... O-O {[%clk 0:02:53.3]} 9. O-O-O {[%clk 0:02:56.2]} 9...
Nc6 {[%clk 0:02:48.9]} 10. Qd5 {[%clk 0:02:52.3]} 10... d6 {[%clk 0:02:40.3]}
11. a3 {[%clk 0:02:41.2]} 11... Be6 {[%clk 0:02:40.6]} 12. Qg5 {[%clk
0:02:40.5]} 12... Ne5 {[%clk 0:02:24.8]} 13. Nc5 {[%clk 0:02:22.9]} 13... Qa5
{[%clk 0:02:16.4]} 14. Nxe6 {[%clk 0:02:16.3]} 14... fxe6 {[%clk 0:02:17.3]} 15.
Qxe7 {[%clk 0:02:10]} 15... Rae8 {[%clk 0:02:00.5]} 16. Qxd6 {[%clk 0:02:06.5]}
16... Ng4 {[%clk 0:02:01.1]} 17. e3 {[%clk 0:01:34.8]} 17... Nxf2 {[%clk
0:01:59.9]} 18. Bc4 {[%clk 0:01:34.9]} 18... Qb6 {[%clk 0:01:54.7]} 19. Rhf1
{[%clk 0:00:58.1]} 19... Rf7 {[%clk 0:00:37.7]} 20. Qxb6 {[%clk 0:00:40.1]}
20... axb6 {[%clk 0:00:35.3]} 21. Rd6 {[%clk 0:00:35.1]} 21... Ne4 {[%clk
0:00:30.2]} 22. Rxb6 {[%clk 0:00:20.2]} 22... Rxf1+ {[%clk 0:00:24.1]} 23. Bxf1
{[%clk 0:00:20.3]} 23... Rf8 {[%clk 0:00:23]} 24. Bc4 {[%clk 0:00:20.1]} 24...
Rf2 {[%clk 0:00:21]} 25. Rxe6 {[%clk 0:00:17.2]} 25... b5 {[%clk 0:00:13.1]} 26.
Rxe4+ {[%clk 0:00:13.7]} 26... bxc4 {[%clk 0:00:12.9]} 27. Rxc4 {[%clk
0:00:13.9]} 27... Rxg2 {[%clk 0:00:13.7]} 28. b4 {[%clk 0:00:12.9]} 28... Rxh2
{[%clk 0:00:13.9]} 29. b5 {[%clk 0:00:13.3]} 29... Rh5 {[%clk 0:00:09]} 30. Rb4
{[%clk 0:00:12.7]} 30... Rc5 {[%clk 0:00:09.2]} 31. b6 {[%clk 0:00:12.8]} 31...
Rc8 {[%clk 0:00:09.9]} 32. b7 {[%clk 0:00:13]} 32... Rb8 {[%clk 0:00:10.6]} 33.
a4 {[%clk 0:00:13.7]} 33... h5 {[%clk 0:00:08.1]} 34. a5 {[%clk 0:00:14.2]}
34... h4 {[%clk 0:00:08.6]} 35. a6 {[%clk 0:00:14.2]} 35... h3 {[%clk
0:00:08.9]} 36. Rh4 {[%clk 0:00:11.4]} 36... g5 {[%clk 0:00:06]} 37. Rxh3 {[%clk
0:00:11.5]} 37... Kf7 {[%clk 0:00:06.4]} 38. a7 {[%clk 0:00:09.3]} 38... Ke7
{[%clk 0:00:07.3]} 39. axb8=Q {[%clk 0:00:08.2]} 1-0

[Event "Late-Titled-Tuesday-Blitz-March-19-2024"]
[Site "Chess.com"]
[Date "2024.03.19"]
[Round "10"]
[White "gympod"]
[Black "rhungaski"]
[Result "1-0"]
[WhiteElo "2433"]
[BlackElo "2608"]
[TimeControl "180+1"]
[EndTime "15:54:01 PDT"]
[Termination "gympod won on time"]

1. c4 {[%clk 0:03:00.9]} 1... Nf6 {[%clk 0:02:59.6]} 2. g3 {[%clk 0:03:01.3]}
2... g6 {[%clk 0:02:59.9]} 3. Bg2 {[%clk 0:03:02]} 3... Bg7 {[%clk 0:03:00.8]}
4. Nc3 {[%clk 0:03:02.7]} 4... O-O {[%clk 0:03:01.4]} 5. e4 {[%clk 0:03:03.4]}
5... d6 {[%clk 0:03:02]} 6. Nge2 {[%clk 0:03:04.1]} 6... e5 {[%clk 0:02:54.3]}
7. O-O {[%clk 0:03:03.9]} 7... Nc6 {[%clk 0:02:40.9]} 8. d3 {[%clk 0:02:59.6]}
8... Bg4 {[%clk 0:02:39.2]} 9. f3 {[%clk 0:02:58.7]} 9... Be6 {[%clk 0:02:30.8]}
10. Be3 {[%clk 0:02:58.1]} 10... Nd7 {[%clk 0:02:29.8]} 11. b3 {[%clk
0:02:45.3]} 11... f5 {[%clk 0:02:13]} 12. exf5 {[%clk 0:02:39.7]} 12... Bxf5
{[%clk 0:02:02]} 13. d4 {[%clk 0:02:22.5]} 13... Nb4 {[%clk 0:01:30.3]} 14. Rc1
{[%clk 0:02:01.6]} 14... c6 {[%clk 0:01:07]} 15. Qd2 {[%clk 0:01:22.4]} 15...
Qa5 {[%clk 0:00:21.6]} 16. g4 {[%clk 0:00:53.8]} 16... Bd3 {[%clk 0:00:21.7]}
17. Rfd1 {[%clk 0:00:42.2]} 17... Rae8 {[%clk 0:00:19.1]} 18. d5 {[%clk
0:00:35.3]} 18... Bxe2 {[%clk 0:00:11.7]} 19. Nxe2 {[%clk 0:00:26.2]} 19... c5
{[%clk 0:00:11.5]} 20. Nc3 {[%clk 0:00:22.8]} 20... a6 {[%clk 0:00:10]} 21. Ne4
{[%clk 0:00:22.6]} 21... Qc7 {[%clk 0:00:09.8]} 22. a3 {[%clk 0:00:21.2]} 22...
a5 {[%clk 0:00:03]} 23. axb4 {[%clk 0:00:21.3]} 23... axb4 {[%clk 0:00:02.8]}
24. Ra1 {[%clk 0:00:22]} 24... Nf6 {[%clk 0:00:01.1]} 25. Ra2 {[%clk 0:00:17.8]}
25... Nxe4 {[%clk 0:00:01.1]} 26. fxe4 {[%clk 0:00:18.7]} 26... Qd7 {[%clk
0:00:01.7]} 27. Qe2 {[%clk 0:00:17.4]} 27... Rf4 {[%clk 0:00:01.8]} 28. Bxf4
{[%clk 0:00:17.2]} 28... exf4 {[%clk 0:00:02.7]} 29. Rad2 {[%clk 0:00:16.1]}
29... f3 {[%clk 0:00:03]} 30. Qxf3 {[%clk 0:00:16.1]} 30... Rf8 {[%clk
0:00:03.7]} 31. Qg3 {[%clk 0:00:16.2]} 31... Be5 {[%clk 0:00:04]} 32. Qh4 {[%clk
0:00:15.2]} 32... Qg7 {[%clk 0:00:03.5]} 33. Rf1 {[%clk 0:00:15]} 33... Bd4+
{[%clk 0:00:03.2]} 34. Kh1 {[%clk 0:00:15.4]} 34... Rxf1+ {[%clk 0:00:02.3]} 35.
Bxf1 {[%clk 0:00:16.3]} 35... Qf7 {[%clk 0:00:02.5]} 36. Kg2 {[%clk 0:00:13.7]}
36... Qf4 {[%clk 0:00:01.7]} 37. Re2 {[%clk 0:00:06.6]} 1-0

[Event "Late-Titled-Tuesday-Blitz-March-19-2024"]
[Site "Chess.com"]
[Date "2024.03.19"]
[Round "10"]
[White "NikoTheodorou"]
[Black "jcibarra"]
[Result "1-0"]
[WhiteElo "3106"]
[BlackElo "2942"]
[TimeControl "180+1"]
[EndTime "15:54:03 PDT"]
[Termination "NikoTheodorou won on time"]

1. Nf3 {[%clk 0:02:57.7]} 1... Nf6 {[%clk 0:02:59.6]} 2. b3 {[%clk 0:02:58.4]}
2... d6 {[%clk 0:02:59.7]} 3. Bb2 {[%clk 0:02:56.9]} 3... e5 {[%clk 0:03:00.1]}
4. c4 {[%clk 0:02:57.7]} 4... g6 {[%clk 0:02:59.3]} 5. g3 {[%clk 0:02:58.1]}
5... Bg7 {[%clk 0:02:59.7]} 6. Bg2 {[%clk 0:02:58.9]} 6... O-O {[%clk
0:03:00.1]} 7. O-O {[%clk 0:02:59.3]} 7... Re8 {[%clk 0:03:00.3]} 8. d3 {[%clk
0:02:59.6]} 8... Nc6 {[%clk 0:02:57.6]} 9. Nc3 {[%clk 0:02:59.6]} 9... h6 {[%clk
0:02:56.5]} 10. a3 {[%clk 0:02:58.7]} 10... a5 {[%clk 0:02:56.8]} 11. Nd2 {[%clk
0:02:58.9]} 11... Be6 {[%clk 0:02:56.4]} 12. Nd5 {[%clk 0:02:57.5]} 12... Bxd5
{[%clk 0:02:55.6]} 13. cxd5 {[%clk 0:02:58.4]} 13... Ne7 {[%clk 0:02:56.3]} 14.
e4 {[%clk 0:02:46.4]} 14... c6 {[%clk 0:02:56.4]} 15. dxc6 {[%clk 0:02:47.3]}
15... Nxc6 {[%clk 0:02:55.5]} 16. Rc1 {[%clk 0:02:48.1]} 16... h5 {[%clk
0:02:47.7]} 17. Nc4 {[%clk 0:02:45.8]} 17... Bh6 {[%clk 0:02:39]} 18. Rc2 {[%clk
0:02:43.8]} 18... h4 {[%clk 0:02:33.4]} 19. Bh3 {[%clk 0:02:43.5]} 19... d5
{[%clk 0:02:21.1]} 20. exd5 {[%clk 0:02:44.4]} 20... Nxd5 {[%clk 0:02:21.4]} 21.
Re1 {[%clk 0:02:44]} 21... Nd4 {[%clk 0:02:13.5]} 22. Bxd4 {[%clk 0:01:52.8]}
22... exd4 {[%clk 0:02:13.5]} 23. Rxe8+ {[%clk 0:01:53.7]} 23... Qxe8 {[%clk
0:02:13.8]} 24. Qf3 {[%clk 0:01:54.6]} 24... Nc3 {[%clk 0:02:02.8]} 25. Kg2
{[%clk 0:01:41.4]} 25... Qe7 {[%clk 0:01:57.9]} 26. Rb2 {[%clk 0:01:15.8]} 26...
Ra6 {[%clk 0:01:53.6]} 27. b4 {[%clk 0:01:13.7]} 27... Rf6 {[%clk 0:01:50.1]}
28. Qg4 {[%clk 0:01:11.5]} 28... hxg3 {[%clk 0:01:43.2]} 29. hxg3 {[%clk
0:01:12.4]} 29... axb4 {[%clk 0:01:34.3]} 30. axb4 {[%clk 0:01:08.8]} 30... Qe1
{[%clk 0:01:31.1]} 31. Qxd4 {[%clk 0:01:04.7]} 31... Bg7 {[%clk 0:01:22.7]} 32.
Qe3 {[%clk 0:01:02.5]} 32... Qa1 {[%clk 0:01:13.2]} 33. Rc2 {[%clk 0:00:54]}
33... b5 {[%clk 0:01:05.2]} 34. Qe8+ {[%clk 0:00:47.9]} 34... Kh7 {[%clk
0:01:03]} 35. Ne3 {[%clk 0:00:43]} 35... Qe1 {[%clk 0:00:55.1]} 36. Bg4 {[%clk
0:00:33.5]} 36... Nd5 {[%clk 0:00:44.5]} 37. Re2 {[%clk 0:00:29]} 37... Rxf2+
{[%clk 0:00:26.6]} 38. Rxf2 {[%clk 0:00:29.2]} 38... Nxe3+ {[%clk 0:00:27.2]}
39. Kf3 {[%clk 0:00:30]} 39... Qd1+ {[%clk 0:00:15.8]} 40. Kxe3 {[%clk
0:00:30.2]} 40... Bh6+ {[%clk 0:00:09.2]} 41. Kd4 {[%clk 0:00:26.5]} 41... Qxg4+
{[%clk 0:00:09.4]} 42. Kc5 {[%clk 0:00:27.3]} 42... f5 {[%clk 0:00:03.2]} 43.
Re2 {[%clk 0:00:16.9]} 43... Bg7 {[%clk 0:00:01.9]} 44. Rh2+ {[%clk 0:00:17.1]}
1-0

[Event "Late-Titled-Tuesday-Blitz-March-19-2024"]
[Site "Chess.com"]
[Date "2024.03.19"]
[Round "10"]
[White "Durarbayli"]
[Black "atbenina64"]
[Result "1-0"]
[WhiteElo "2963"]
[BlackElo "2757"]
[TimeControl "180+1"]
[EndTime "15:54:03 PDT"]
[Termination "Durarbayli won by resignation"]

1. e4 {[%clk 0:03:00.9]} 1... c5 {[%clk 0:03:00.4]} 2. Nf3 {[%clk 0:03:00.9]}
2... d6 {[%clk 0:03:01]} 3. d4 {[%clk 0:03:01.2]} 3... cxd4 {[%clk 0:03:01.9]}
4. Nxd4 {[%clk 0:03:01.8]} 4... Nf6 {[%clk 0:03:02.6]} 5. Nc3 {[%clk 0:03:02.3]}
5... a6 {[%clk 0:03:03.4]} 6. h4 {[%clk 0:03:02.8]} 6... e5 {[%clk 0:03:03.2]}
7. Nb3 {[%clk 0:03:03]} 7... Be6 {[%clk 0:03:01.6]} 8. f4 {[%clk 0:03:02.4]}
8... g6 {[%clk 0:03:02.2]} 9. Be2 {[%clk 0:03:01.7]} 9... Be7 {[%clk 0:02:57.2]}
10. h5 {[%clk 0:02:36.7]} 10... Rg8 {[%clk 0:02:48.8]} 11. hxg6 {[%clk
0:02:35.6]} 11... hxg6 {[%clk 0:02:47.9]} 12. fxe5 {[%clk 0:02:29.4]} 12... dxe5
{[%clk 0:02:47.9]} 13. Qxd8+ {[%clk 0:02:30.3]} 13... Kxd8 {[%clk 0:02:45.4]}
14. Bg5 {[%clk 0:02:26.3]} 14... Nbd7 {[%clk 0:02:43.9]} 15. O-O-O {[%clk
0:02:20.5]} 15... Rc8 {[%clk 0:02:34.5]} 16. Rhf1 {[%clk 0:01:45.9]} 16... Ke8
{[%clk 0:02:27.1]} 17. Bf3 {[%clk 0:01:31.2]} 17... b5 {[%clk 0:02:17]} 18. Be3
{[%clk 0:01:30.1]} 18... Bc4 {[%clk 0:01:49.2]} 19. Rf2 {[%clk 0:01:23.8]} 19...
Bxb3 {[%clk 0:01:35.1]} 20. axb3 {[%clk 0:01:22.5]} 20... Bc5 {[%clk 0:01:35.5]}
21. Bxc5 {[%clk 0:01:05]} 21... Nxc5 {[%clk 0:01:36.4]} 22. b4 {[%clk
0:01:05.8]} 22... Ne6 {[%clk 0:01:31.1]} 23. Rd6 {[%clk 0:01:05]} 23... Ra8
{[%clk 0:00:50.3]} 24. Nd5 {[%clk 0:00:36.4]} 24... Nxd5 {[%clk 0:00:40.6]} 25.
Rxd5 {[%clk 0:00:33.6]} 25... f6 {[%clk 0:00:27]} 26. Bg4 {[%clk 0:00:22.3]}
26... Nf4 {[%clk 0:00:23.3]} 27. Rd6 {[%clk 0:00:19]} 27... Ke7 {[%clk
0:00:02.3]} 28. Rd7+ {[%clk 0:00:19.3]} 28... Ke8 {[%clk 0:00:03]} 29. Rh7
{[%clk 0:00:13.7]} 29... Rd8 {[%clk 0:00:01.9]} 30. g3 {[%clk 0:00:08.8]} 30...
Nh5 {[%clk 0:00:02.5]} 31. Bxh5 {[%clk 0:00:07.3]} 31... gxh5 {[%clk 0:00:03.4]}
32. Rxf6 {[%clk 0:00:06.5]} 32... Rxg3 {[%clk 0:00:03.6]} 33. b3 {[%clk
0:00:03.7]} 33... Rg1+ {[%clk 0:00:02]} 34. Kb2 {[%clk 0:00:04.4]} 34... Rd2
{[%clk 0:00:02.4]} 35. Rxa6 {[%clk 0:00:04.3]} 35... Rgg2 {[%clk 0:00:01.5]} 36.
Ra8+ {[%clk 0:00:04.3]} 1-0

[Event "Late-Titled-Tuesday-Blitz-March-19-2024"]
[Site "Chess.com"]
[Date "2024.03.19"]
[Round "10"]
[White "ameetghasi100"]
[Black "DryCounty"]
[Result "1-0"]
[WhiteElo "2794"]
[BlackElo "2658"]
[TimeControl "180+1"]
[EndTime "15:54:04 PDT"]
[Termination "ameetghasi100 won on time"]

1. g3 {[%clk 0:03:00.9]} 1... g6 {[%clk 0:02:58.9]} 2. Nf3 {[%clk 0:03:00.9]}
2... Nf6 {[%clk 0:02:56.3]} 3. Bg2 {[%clk 0:03:01.8]} 3... Bg7 {[%clk
0:02:56.3]} 4. O-O {[%clk 0:03:02.7]} 4... O-O {[%clk 0:02:56.4]} 5. d4 {[%clk
0:03:03.6]} 5... d6 {[%clk 0:02:56.5]} 6. c3 {[%clk 0:03:03.7]} 6... Nc6 {[%clk
0:02:55.3]} 7. Nbd2 {[%clk 0:03:03.5]} 7... e5 {[%clk 0:02:50.6]} 8. e4 {[%clk
0:03:03.8]} 8... Bg4 {[%clk 0:02:48.2]} 9. d5 {[%clk 0:02:57.1]} 9... Ne7 {[%clk
0:02:46.6]} 10. Qb3 {[%clk 0:02:53.5]} 10... Bc8 {[%clk 0:02:44.4]} 11. a4
{[%clk 0:02:46.2]} 11... a5 {[%clk 0:02:43.3]} 12. Re1 {[%clk 0:02:42.7]} 12...
Nd7 {[%clk 0:02:42.6]} 13. Qc2 {[%clk 0:02:35.4]} 13... c6 {[%clk 0:02:20.4]}
14. dxc6 {[%clk 0:02:19.1]} 14... bxc6 {[%clk 0:02:18.9]} 15. Nc4 {[%clk
0:02:19.7]} 15... Qc7 {[%clk 0:01:58.9]} 16. Bg5 {[%clk 0:02:13.9]} 16... Nc5
{[%clk 0:01:53.2]} 17. b4 {[%clk 0:02:09.5]} 17... axb4 {[%clk 0:01:47.5]} 18.
cxb4 {[%clk 0:02:09.5]} 18... Ne6 {[%clk 0:01:47.6]} 19. Bd2 {[%clk 0:02:02.9]}
19... d5 {[%clk 0:01:31]} 20. Na5 {[%clk 0:01:58.4]} 20... dxe4 {[%clk
0:01:20.6]} 21. Qxe4 {[%clk 0:01:56]} 21... f5 {[%clk 0:01:12.4]} 22. Qc4 {[%clk
0:01:54.9]} 22... Kh8 {[%clk 0:00:54.9]} 23. Ng5 {[%clk 0:01:40.2]} 23... Nd4
{[%clk 0:00:45.3]} 24. Bc3 {[%clk 0:01:09]} 24... Ba6 {[%clk 0:00:31.6]} 25. Qc5
{[%clk 0:00:54.7]} 25... Qa7 {[%clk 0:00:20]} 26. Bxd4 {[%clk 0:00:53.6]} 26...
exd4 {[%clk 0:00:16.3]} 27. Rxe7 {[%clk 0:00:48.8]} 27... Qxc5 {[%clk
0:00:15.4]} 28. bxc5 {[%clk 0:00:49.7]} 28... Bf6 {[%clk 0:00:12.7]} 29. Nf7+
{[%clk 0:00:36.1]} 29... Kg8 {[%clk 0:00:12.1]} 30. Nh6+ {[%clk 0:00:31]} 30...
Kh8 {[%clk 0:00:12.1]} 31. Rd7 {[%clk 0:00:31.3]} 31... Be2 {[%clk 0:00:10.2]}
32. Nxc6 {[%clk 0:00:10.5]} 32... d3 {[%clk 0:00:10.2]} 33. Ra2 {[%clk
0:00:11.1]} 33... Rae8 {[%clk 0:00:06.3]} 34. Nf7+ {[%clk 0:00:10.8]} 34... Rxf7
{[%clk 0:00:04.1]} 35. Rxf7 {[%clk 0:00:11.7]} 35... Bc3 {[%clk 0:00:04.1]} 36.
Re7 {[%clk 0:00:09.4]} 36... Rc8 {[%clk 0:00:02.1]} 37. Rd7 {[%clk 0:00:08.1]}
1-0

[Event "Late-Titled-Tuesday-Blitz-March-19-2024"]
[Site "Chess.com"]
[Date "2024.03.19"]
[Round "10"]
[White "Orest_Vovk"]
[Black "ContrVersia"]
[Result "1-0"]
[WhiteElo "2557"]
[BlackElo "2907"]
[TimeControl "180+1"]
[EndTime "15:54:06 PDT"]
[Termination "Orest_Vovk won by resignation"]

1. h4 {[%clk 0:03:00.9]} 1... d5 {[%clk 0:02:57.1]} 2. h5 {[%clk 0:03:01.2]}
2... e5 {[%clk 0:02:56.3]} 3. h6 {[%clk 0:03:01.6]} 3... g6 {[%clk 0:02:40.1]}
4. d4 {[%clk 0:03:01.8]} 4... e4 {[%clk 0:02:35.8]} 5. c4 {[%clk 0:03:01.4]}
5... c6 {[%clk 0:02:34.2]} 6. Nc3 {[%clk 0:03:00.1]} 6... Be6 {[%clk 0:02:30.4]}
7. Qb3 {[%clk 0:02:56.4]} 7... Qb6 {[%clk 0:02:16.8]} 8. c5 {[%clk 0:02:49.2]}
8... Qc7 {[%clk 0:01:40.1]} 9. g3 {[%clk 0:02:48.9]} 9... Nd7 {[%clk 0:01:37.2]}
10. Bf4 {[%clk 0:02:48.1]} 10... Qc8 {[%clk 0:01:37.7]} 11. e3 {[%clk
0:02:39.9]} 11... b6 {[%clk 0:01:33.7]} 12. cxb6 {[%clk 0:02:36.1]} 12... axb6
{[%clk 0:01:33.7]} 13. Rc1 {[%clk 0:02:33.2]} 13... Qb7 {[%clk 0:01:30.5]} 14.
f3 {[%clk 0:02:11.1]} 14... exf3 {[%clk 0:01:28.3]} 15. Nxf3 {[%clk 0:02:10.9]}
15... Ngf6 {[%clk 0:01:28.7]} 16. Ng5 {[%clk 0:02:02]} 16... Be7 {[%clk
0:01:28.8]} 17. Nxe6 {[%clk 0:01:59.1]} 17... fxe6 {[%clk 0:01:29.7]} 18. Bh3
{[%clk 0:01:56.2]} 18... g5 {[%clk 0:01:03.2]} 19. Bxg5 {[%clk 0:01:42.5]} 19...
e5 {[%clk 0:01:03.5]} 20. O-O {[%clk 0:01:20.8]} 20... Rg8 {[%clk 0:01:02.4]}
21. Rf5 {[%clk 0:01:07.3]} 21... exd4 {[%clk 0:00:41]} 22. exd4 {[%clk
0:01:08.2]} 22... O-O-O {[%clk 0:00:33.4]} 23. Bf4 {[%clk 0:00:37.6]} 23... Rdf8
{[%clk 0:00:26.4]} 24. Nxd5 {[%clk 0:00:33.6]} 24... Bd8 {[%clk 0:00:05.4]} 25.
Nxf6 {[%clk 0:00:23]} 25... Bxf6 {[%clk 0:00:05.6]} 26. Kh2 {[%clk 0:00:12.7]}
26... Rg6 {[%clk 0:00:02.9]} 27. Bg2 {[%clk 0:00:11.2]} 27... Be7 {[%clk
0:00:01.9]} 28. Rxf8+ {[%clk 0:00:09.4]} 28... Bxf8 {[%clk 0:00:02.8]} 29. Qf7
{[%clk 0:00:07.9]} 29... Be7 {[%clk 0:00:01.3]} 30. Qxe7 {[%clk 0:00:06.8]}
30... Nc5 {[%clk 0:00:01.5]} 31. Qxb7+ {[%clk 0:00:06]} 31... Kxb7 {[%clk
0:00:01.6]} 32. dxc5 {[%clk 0:00:06.1]} 32... b5 {[%clk 0:00:02.5]} 33. b4
{[%clk 0:00:05.7]} 33... Re6 {[%clk 0:00:02.9]} 34. a4 {[%clk 0:00:05.8]} 34...
bxa4 {[%clk 0:00:02.3]} 35. b5 {[%clk 0:00:06.2]} 35... a3 {[%clk 0:00:03.2]}
36. Bxc6+ {[%clk 0:00:05.7]} 36... Kc8 {[%clk 0:00:04.1]} 37. Ra1 {[%clk
0:00:05.9]} 37... Re2+ {[%clk 0:00:04.4]} 38. Kh3 {[%clk 0:00:06.1]} 38... a2
{[%clk 0:00:05.3]} 39. b6 {[%clk 0:00:05.7]} 39... Rc2 {[%clk 0:00:05.2]} 40.
b7+ {[%clk 0:00:05.9]} 40... Kd8 {[%clk 0:00:05.8]} 41. b8=Q+ {[%clk 0:00:06.4]}
1-0

[Event "Late-Titled-Tuesday-Blitz-March-19-2024"]
[Site "Chess.com"]
[Date "2024.03.19"]
[Round "10"]
[White "Vadim_Galchenko"]
[Black "Bugcrusher"]
[Result "0-1"]
[WhiteElo "2577"]
[BlackElo "2481"]
[TimeControl "180+1"]
[EndTime "15:54:13 PDT"]
[Termination "Bugcrusher won by resignation"]

1. e4 {[%clk 0:03:00.9]} 1... c6 {[%clk 0:02:55.5]} 2. c4 {[%clk 0:03:00.6]}
2... e5 {[%clk 0:02:53.8]} 3. Nf3 {[%clk 0:03:00.4]} 3... d6 {[%clk 0:02:53.9]}
4. d4 {[%clk 0:03:00.6]} 4... Nd7 {[%clk 0:02:54.5]} 5. Nc3 {[%clk 0:02:58.8]}
5... Ngf6 {[%clk 0:02:54.7]} 6. Be2 {[%clk 0:02:58.6]} 6... g6 {[%clk
0:02:54.6]} 7. O-O {[%clk 0:02:58.7]} 7... Bg7 {[%clk 0:02:55.2]} 8. Be3 {[%clk
0:02:59.2]} 8... O-O {[%clk 0:02:55.4]} 9. Qc2 {[%clk 0:02:56.6]} 9... Qe7
{[%clk 0:02:53]} 10. d5 {[%clk 0:02:55.9]} 10... a5 {[%clk 0:02:51.7]} 11. a3
{[%clk 0:02:55.4]} 11... Ng4 {[%clk 0:02:47.7]} 12. Bg5 {[%clk 0:02:55.1]} 12...
f6 {[%clk 0:02:47.4]} 13. Bh4 {[%clk 0:02:50.2]} 13... Nh6 {[%clk 0:02:37.6]}
14. Nd2 {[%clk 0:02:42.3]} 14... Nf7 {[%clk 0:02:24.1]} 15. b4 {[%clk
0:02:41.9]} 15... h5 {[%clk 0:02:16.5]} 16. f3 {[%clk 0:02:36.3]} 16... Bh6
{[%clk 0:02:11.8]} 17. Bf2 {[%clk 0:02:31.9]} 17... f5 {[%clk 0:02:09.4]} 18.
Rfd1 {[%clk 0:02:29.2]} 18... Nf6 {[%clk 0:02:01.2]} 19. c5 {[%clk 0:02:26.1]}
19... axb4 {[%clk 0:01:58]} 20. axb4 {[%clk 0:02:26]} 20... Rxa1 {[%clk
0:01:58]} 21. Rxa1 {[%clk 0:02:26.9]} 21... cxd5 {[%clk 0:01:47.3]} 22. exd5
{[%clk 0:02:06.2]} 22... e4 {[%clk 0:01:40.4]} 23. fxe4 {[%clk 0:02:01.4]} 23...
fxe4 {[%clk 0:01:37.4]} 24. Bd4 {[%clk 0:01:56.7]} 24... e3 {[%clk 0:01:23]} 25.
Nc4 {[%clk 0:01:38.7]} 25... Bf5 {[%clk 0:01:21.1]} 26. Bd3 {[%clk 0:01:38.7]}
26... e2 {[%clk 0:00:56.7]} 27. Re1 {[%clk 0:01:32.5]} 27... Ng4 {[%clk
0:00:40.9]} 28. Rxe2 {[%clk 0:01:26.8]} 28... Qh4 {[%clk 0:00:39.4]} 29. g3
{[%clk 0:01:20.5]} 29... Qg5 {[%clk 0:00:33.3]} 30. h4 {[%clk 0:01:05.5]} 30...
Bxd3 {[%clk 0:00:30.6]} 31. Qxd3 {[%clk 0:00:57.5]} 31... Qc1+ {[%clk
0:00:30.6]} 32. Kg2 {[%clk 0:00:58]} 32... Nfe5 {[%clk 0:00:25.3]} 33. Qd1
{[%clk 0:00:49.1]} 33... Qxd1 {[%clk 0:00:23.4]} 34. Nxd1 {[%clk 0:00:50]} 34...
Nxc4 {[%clk 0:00:23.3]} 35. Re7 {[%clk 0:00:47.7]} 35... Rf7 {[%clk 0:00:20.8]}
36. Re8+ {[%clk 0:00:47.3]} 36... Rf8 {[%clk 0:00:19.8]} 37. Re7 {[%clk
0:00:47.4]} 37... Rf7 {[%clk 0:00:17]} 38. Re6 {[%clk 0:00:19.1]} 38... dxc5
{[%clk 0:00:15.6]} 39. bxc5 {[%clk 0:00:19.3]} 39... Rd7 {[%clk 0:00:15.5]} 40.
Rxg6+ {[%clk 0:00:18.7]} 40... Kf7 {[%clk 0:00:14.2]} 41. Re6 {[%clk 0:00:11.3]}
41... Rxd5 {[%clk 0:00:14.2]} 42. Re4 {[%clk 0:00:11.6]} 42... Nce3+ {[%clk
0:00:13.3]} 43. Nxe3 {[%clk 0:00:11.6]} 43... Nxe3+ {[%clk 0:00:12.8]} 44. Bxe3
{[%clk 0:00:12.1]} 44... Bxe3 {[%clk 0:00:12]} 45. Rxe3 {[%clk 0:00:13]} 45...
Rxc5 {[%clk 0:00:12.5]} 46. Rb3 {[%clk 0:00:13.9]} 46... b5 {[%clk 0:00:11.6]}
47. Kf3 {[%clk 0:00:14]} 47... Kf6 {[%clk 0:00:11.8]} 48. Rxb5 {[%clk
0:00:14.2]} 48... Rxb5 {[%clk 0:00:11.8]} 0-1